Cogmind - Beta 14 @@@ ROGUE MODE // 2024.11.19 @ 20:23:46 Player: Shimmyarah Result: Destroyed by G-34 Mercenary with Small Laser Performance ------------- Evolutions (0) 0 Regions Visited (1) 200 Robots Destroyed (17) 85 Value Destroyed (341) 341 Prototype IDs (0) 0 Alien Tech Used (0) 0 Bonus (0) 0 TOTAL SCORE: 626 Bonus ------- None Cogmind --------- Core Integrity 0/250 Matter 300/300 Energy 98/100 System Corruption 0% Temperature Cool (6) Movement Core (50) Location -10/Materials Parts ------- > --- POWER (1) -------- (None) > --- PROPULSION (2) --- (None) > --- UTILITY (2) ------ Improved Terrain Scanner Seismic Detector > --- WEAPON (2) ------- (None) > --- INVENTORY (5) ---- Light Treads Improved Aluminum Leg Wheel Peak State ------------ > --- POWER ------------ Light Nuclear Core > --- PROPULSION ------- Light Treads Wheel > --- UTILITY ---------- Small Storage Unit Improved Terrain Scanner > --- WEAPON ----------- Shotgun Shotgun > --- INVENTORY -------- Ion Engine Light Ion Engine Light Treads Light Treads Improved Aluminum Leg Flight Unit Seismic Detector Mining Laser [Rating: 13] Favorites ----------- Power Light Nuclear Core Engine Ion Engine Power Core Light Nuclear Core Propulsion Wheel Treads Light Treads Leg Aluminum Leg Wheel Wheel Flight Unit Flight Unit Utility Small Storage Unit Device Improved Terrain Scanner Storage Small Storage Unit Weapon Shotgun Ballistic Gun Shotgun Special Weapon Mining Laser Build | -11 -10 ------- Run | Yrd Mat Slots Evolved . | . . Power . | . . Propulsion . | . . Utility . | . . Weapon . | . . Parts Attached 25 | 1 24 Power 2 | . 2 Engine 1 | . 1 Core 1 | . 1 Reactor . | . . Propulsion 9 | . 9 Treads 5 | . 5 Leg . | . . Wheel 2 | . 2 Hover . | . . Flight 2 | . 2 Utility 5 | 1 4 Device 5 | 1 4 Storage . | . . Processor . | . . Hackware . | . . Protection . | . . Artifact . | . . Weapon 9 | . 9 Energy Gun . | . . Energy Cannon . | . . Ballistic Gun 7 | . 7 Ballistic Cannon . | . . Launcher . | . . Special Weapon 2 | . 2 Impact Weapon . | . . Slashing Weapon . | . . Piercing Weapon . | . . Special Melee Weapon . | . . Unidentified Prototypes . | . . Parts Lost 6 | . 6 Power . | . . Propulsion 2 | . 2 Utility 1 | . 1 Weapon 3 | . 3 Highest Loss Streak 4 | . 4 To Critical Strikes . | . . Average Slot Usage (%) 67 | . 67 Engine 3 | . 3 Core 5 | . 5 Treads 7 | . 7 Wheel 8 | . 8 Flight 6 | . 6 Device 10 | . 10 Storage 8 | . 8 Ballistic Gun 12 | . 12 Special Weapon 3 | . 3 Peak Build Rating 13 | 8 13 Average Rating 7 | 6 7 On Entrance 7 | 6 8 Naked Turns . | . . Heaviest Build 17 | 14 17 Greatest Support 40 | 20 40 Greatest Overweight (x) 4 | . 4 Average Overweight (x) . | . . Largest Inventory Capacity 8 | 8 8 Average Capacity 6 | 8 6 Most Carried 8 | 8 8 Average Carried 6 | 6 6 Final Capacity 8 | 8 5 Final Carried 8 | 8 3 Class Distribution -------------------- 100% | Mutant Dominant Class ---------------- Mutant | -10/Materials Resources | -11 -10 ----------- Run | Yrd Mat Matter Collected 761 | 260 501 Remotely . | . . Salvage Created 598 | 147 451 Parts 45 | 15 30 Haulers Intercepted . | . . Recyclers Shooed 3 | . 3 Parts Field Recycled . | . . Retrieved Matter . | . . Parts Self-Destructed . | . . Prevented . | . . Kills | -11 -10 ------- Run | Yrd Mat Combat Hostiles Destroyed 7 | . 7 Guns 7 | . 7 Classes Destroyed 6 | 2 4 Worker 1 | . 1 Builder 1 | . 1 Tunneler 3 | 3 . Recycler 3 | 1 2 Watcher 2 | . 2 Grunt 7 | . 7 Best Kill Streak 7 | 2 7 Combat Bots Only 2 | . 2 Max Kills in Single Turn 1 | 1 1 Gunslinging . | . . Exploded . | . . Melee . | . . Uniques/NPCs Destroyed . | . . Combat | -11 -10 -------- Run | Yrd Mat Hostile Shots Fired 95 | . 95 Missed 27 | . 27 Damage Taken 955 | . 955 Core 255 | . 255 Absorbed by Shields . | . . Core Remaining (%) 100 | 100 . Volleys Fired 70 | 15 55 Largest 2 | 2 2 Hottest 123 | 40 123 Shots Fired 126 | 30 96 Gun 110 | 30 80 Cannon . | . . Launcher . | . . Special 16 | . 16 Kinetic 110 | 30 80 Thermal 16 | . 16 Explosive . | . . Electromagnetic . | . . Robot Hit Streak 8 | 7 8 Robot Miss Streak 3 | 2 3 Penetration Max . | . . Secondary Targets . | . . Shots Hit Robots 76 | 14 62 Core Hits 36 | 6 30 Critical Kills . | . . Critical Parts Destroyed . | . . Critical Strikes . | . . Melee Attacks . | . . Impact . | . . Slashing . | . . Piercing . | . . Sneak Attacks . | . . Combat Hostiles . | . . Follow-up Attacks . | . . Damage Inflicted 1132 | 128 1004 Guns 1018 | 128 890 Cannons . | . . Explosions . | . . Melee . | . . Ramming 90 | . 90 Kinetic 1018 | 128 890 Thermal 24 | . 24 Explosive . | . . Electromagnetic . | . . Impact . | . . Slashing . | . . Piercing . | . . Highest Corruption . | . . Average Corruption . | . . Corruption Purged . | . . Corruption Blocked . | . . Overload Shots . | . . Overflow Damage . | . . Projectiles . | . . Explosions . | . . Melee . | . . Knockbacks . | . . Impact . | . . Kinetic . | . . Secondary . | . . Self-Inflicted Damage 42 | . 42 Shots . | . . Rammed 23 | . 23 Targets Rammed 23 | . 23 Kicked . | . . Crushed . | . . Highest Temperature 252 | . 252 Average Temperature 94 | . 94 Received Heat Transfer 552 | . 552 Effects 1 | . 1 Energy Bleed 1 | . 1 Siege Activations . | . . Robots Corrupted . | . . Combat Hostiles . | . . Parts Fried . | . . Impact Corruptions . | . . Robots Melted . | . . Combat Hostiles . | . . Parts Melted . | . . Heat Transferred 50 | . 50 Parts Sabotaged . | . . Parts Stolen . | . . Parts Stripped . | . . Power Chain Reactions . | . . Alert | -11 -10 ------- Run | Yrd Mat Peak Influence 212 | 20 212 Initial 13 | . 13 Average 23 | 12 23 Maximum Alert Level 1 | . 1 Low Security (%) 99 | 100 99 Level 1 . | . . Level 2 . | . . Level 3 . | . . Level 4 . | . . Level 5 . | . . High Security . | . . Max Security . | . . Squads Dispatched 1 | . 1 Investigation . | . . Extermination . | . . Reinforcement 1 | . 1 Assault . | . . Garrison . | . . Intercept . | . . Searches Triggered . | . . Construction Impeded . | . . Haulers Reinforced . | . . Active Scanning Responses . | . . Cargo Convoy Interrupts . | . . Stealth | -11 -10 --------- Run | Yrd Mat Distress Signals 3 | . 3 Communications Jammed . | . . Distress Signals . | . . Times Spotted 24 | . 24 Peak Tracking Total 4 | . 4 Tactical Retreats 4 | . 4 Traps | -11 -10 ------- Run | Yrd Mat Traps Triggered 4 | . 4 Indirectly . | . . Trap Hack Attempts . | . . Triggered . | . . Disarmed . | . . Reprogrammed . | . . Reused . | . . Traps Extracted . | . . Installed . | . . Triggered . | . . Machines | -11 -10 ---------- Run | Yrd Mat Machines Disabled . | . . Max in Single Turn . | . . Machines Repaired . | . . Machines Dismantled . | . . Machines Sabotaged . | . . Overloaded Fab Kills . | . . Hacking | -11 -10 --------- Run | Yrd Mat Machines Accessed 5 | . 5 Terminals 4 | . 4 Fabricators . | . . Repair Stations . | . . Recycling Units 1 | . 1 Scanalyzers . | . . Garrison Access . | . . Total Hacks 10 | . 10 Successful 6 | . 6 Failed 4 | . 4 Catastrophic 2 | . 2 Database Lockouts . | . . Manual 5 | . 5 Terminals 8 | . 8 Fabricators . | . . Repair Stations . | . . Recycling Units 2 | . 2 Scanalyzers . | . . Garrison Access . | . . Terminal Hacks 3 | . 3 Robot Analysis 1 | . 1 Terminal Index 1 | . 1 Zone Layout 1 | . 1 Fabricator Hacks . | . . Repair Station Hacks . | . . Recycling Unit Hacks . | . . Scanalyzer . | . . Garrison Access Hacks . | . . Unauthorized Hacks 1 | . 1 Terminals 1 | . 1 Botnet 1 | . 1 Fabricators . | . . Repair Stations . | . . Recycling Units . | . . Scanalyzers . | . . Garrison Access . | . . Data Cores Recovered . | . . Used . | . . Hacking Detections 3 | . 3 Full Trace Events 1 | . 1 Feedback Events . | . . Feedback Blocked . | . . Robot Schematics Acquired . | . . Robots Built . | . . Authchips . | . . Time . | . . Total Robot Build Rating . | . . Part Schematics Acquired . | . . Parts Built . | . . Authchips . | . . Time . | . . Total Part Build Rating . | . . Parts Repaired . | . . Time . | . . Parts Recycled . | . . Recycled Matter . | . . Retrieved Matter . | . . Retrieved Components . | . . Parts Scanalyzed . | . . Part Schematics Acquired . | . . Parts Damaged . | . . Bothacking | -11 -10 ------------ Run | Yrd Mat Used RIF Installer . | . . Robots Hacked . | . . Non-combat . | . . Combat . | . . Robot Hacks Applied . | . . Relay Couplers Released . | . . Fabnet Peak Effective % . | . . Robots Rewired . | . . Allies Hacked . | . . Hacks Repelled . | . . Allies | -11 -10 -------- Run | Yrd Mat Total Allies . | . . Largest Group . | . . Highest-Rated Group . | . . Highest-Rated Ally . | . . Total Orders . | . . Ally Attacks . | . . Total Damage . | . . Kills . | . . Allies Corrupted . | . . Allies Melted . | . . Intel | -11 -10 ------- Run | Yrd Mat Robot Analysis Total 1 | . 1 Derelict Logs Recovered . | . . Drone Launches . | . . Drone Recoveries . | . . Exploration | -11 -10 ------------- Run | Yrd Mat Turns Passed 1991 | 92 1899 Spaces Moved 1114 | 16 1098 Core 128 | . 128 Treads 33 | . 33 Legs 16 | 16 . Wheels 474 | . 474 Hover . | . . Flight 463 | . 463 Fastest Speed 37 | 120 37 Average Speed 68 | 120 67 Slowest Speed 250 | 120 250 Overloaded Moves . | . . Propulsion Burnouts . | . . Robots Hopped 14 | . 14 Cave-ins Triggered . | . . Exploration Rate (%) 48 | 3 93 Regions Visited 1 Branch Regions . Pre-discovered Areas . | . . Known Exits Taken . | . . Unknown Exits Taken 1 | 1 . Scrap Searched . | . . Spaces Dug 7 | . 7 Terrain Destroyed 14 | . 14 Melee . | . . Projectile 14 | . 14 AOE . | . . Terrain Rammed . | . . Walls Destroyed . | . . Machines Disabled . | . . Actions | -11 -10 --------- Run | Yrd Mat Total 2171 | 62 2109 Wait 932 | 28 904 Move 1085 | 15 1070 Hop 14 | . 14 Pick Up 12 | 3 9 Fast Attach 7 | . 7 Attach 8 | 1 7 Detach 1 | . 1 Swap 10 | . 10 Drop 9 | . 9 Fire 70 | 15 55 Melee . | . . Ram 20 | . 20 Kick . | . . Crush 3 | . 3 Escape Stasis . | . . Rewire . | . . Trap . | . . Miscellaneous . | . . Route ------- -11/Scrapyard -10/Materials (discovered 4 exits: [*Mat x3] / [*Min]) History --------- Turn | Location | Event 13 | -11/Scrapyard | Discovered new exit (range 3) 93 | -11/Scrapyard | Entered Materials 216 | -10/Materials | Discovered new exit (range 16) 237 | -10/Materials | Discovered new exit (range 16) 306 | -10/Materials | Build established: Mutant 340 | -10/Materials | Discovered new exit (range 16) 561 | -10/Materials | Discovered new exit (range 11) 1205 | -10/Materials | Released all parts (2) 1235 | -10/Materials | Lost 4 parts (1u3w) 1715 | -10/Materials | Core integrity fell below 50% 1923 | -10/Materials | Core integrity fell below 20% 1992 | -10/Materials | Destroyed by G-34 Mercenary with Small Laser Last Messages --------------- 01920_ R-06 Scavenger destroyed. 01921_ Acquired 94 matter. 01921_ Slammed into W-16 Scout. 01922_ R-06 Scavenger collects Com. Wheel. 01923_ Slammed into W-16 Scout. 01923_ W-16 Scout destroyed. 01924_ Acquired 17 matter. 01941_ Slammed into T-07 Excavator. 01942_ Acquired 2 matter. 01943_ Slammed into T-07 Excavator. 01944_ Acquired 3 matter. 01945_ Acquired 110 matter. 01946_ Slammed into T-07 Excavator. 01946_ Destabilizing: Core damaged (-10). 01947_ Slammed into K-01 Serf. 01947_ Seismic Detector broken. 01947_ Destabilizing: Short circuit. 01948_ Slammed into K-01 Serf. 01952_ Slammed into T-07 Excavator. 01973_ Slammed into K-01 Serf. Map ----- +----------------------------------------------------+ | ???# ### ### | * ###### # """ # #???#! | | ???# #?# ### / #### # """ # ####### | | ???# #?# #?# + + """ # | | #??# #?# #?# #### # # | | ???# ### ### ! #??# # """ # """ | | ???# ## ##/######### # """ # !![ """ | | ???# ## # """ # ![[ """ | | ???# ! # # ![[ | | ???#### ########## | | ??????# ############ ###???????# | | ??????### #### """ #?# #???#?????#^ | | ???????## #### """ ######???#?????#^ ! !! | | ???????## #### """ #?#????????????# = ! * | | #########* + #??#??????#????# ###### | | ######### #### ################# ####### | | # #### ##?# # # """ # # | | # "" #^ !#######+### # "T" # # | | # "T # ##### # """ # + + | | # "" # ##### # """"" # # # | | # + T + """"" # + + | | # ########## # """"" # # # | | # ########## # """ ######## ####+## | | # ##?######### ### #??#???# #?## #? | | # ############ ### #???#??# #??# #? | | ################# ########+########## #??# ## | | ##### @ g%g # # #??# #? | | ## ## ########### # # #??# #? | | ### # #########?# # """ # ##?# #? | | ## # ##?######## # """ # #??# #? | | ### # %#########+##?# #%# """ # #??# #? | | ##### ######### ?# #%# # #??# ## | | ?#### + """ # ## """ +%+ # #??# | | ?####+### "R" # ?## """ #%####### #??#### | | ?# # " " # ??# """ # #T### #?????? | | ?#""" # # ?## # #?#???? | | ?#""" # ! # ?######## ##### #?????? | | ##""" [ # # #???#???# #???# #?????? | | ?# # """ ###?????????# #???# #?????? | | ######### """ ##########??#+###### ####???? | | # # """ ## #??# # !##??? | | # """ # ## ##?#""" + !#??? | | # """ # ## #??#""" # !#??? | | # """ #+#+###### #??#""" # !##?? | | # # # #??# # !#??? | | # + + #??#! # !##??? | | # # # #??######## ####???# | | # ### # #?????????# #??????? | | # #?# # #?????????# #??????? | | # ### # #?????????# #??????? | | # #?# + #?????????# #??????? | +----------------------------------------------------+ Best States ------------- Heat Dissipation 25 Energy Generation 14 Energy Capacity 250 Matter Stores 300 Matter Capacity 300 Sight Range 16 Terrain Scan Range 16 Terrain Scan Density 10 Evasion (%) 62 Recoil Reduction 2 Item Schematics ----------------- None Robot Schematics ------------------ None Fabricated ------------ Nothing Alien Tech Used ----------------- None Achievements -------------- None Challenges ------------ None Game ------ Seed ArmoredInsulationGreatsword Manual? 0 Play Time 00:13:44 Cumulative 62.0 hours Start 2024.11.19 @ 20:11:54 End 2024.11.19 @ 20:23:46 Sessions 1 Manual Loads 0 Difficulty Rogue Special Mode None Game No. 107 Rogue 107 Adventurer 0 Explorer 0 Win Type - Total 0 Types 0/0/0/0/0/0/0/0/0 Lore% 44 Gallery% 37 Achievement% 28 Wizard Run 0 Options --------- Layout 1 ASCII 0 Keyboard 0 Movement Arrows Keybinds 0 Fullscreen 0 Font 20/SmallcapsGlow Map View 50x40 Zoom Use 0% Tactical HUD 1 Map Filters NONE Filters NONE Steam 1 RUN: d25b47bb-aa16-4d20-a18a-f634be3bcd1c